bitfinex/quotes_SOLUSD_20240918
["timestamp","ask_amount","ask_price","bid_price","bid_amount"]
[1726684747720,18.8877,132.37,132.22,20.0]
[1726684747922,0.5082163,132.4,132.17,37.8284]
[1726684747923,10.0,132.35,132.18,26.4781]
[1726684748129,10.0,132.33,132.19,20.0]
[1726684748326,20.0,132.32,132.16,70.29865964]
[1726684748527,10.0,132.31,132.13,112.73235964]
[1726684748735,20.0,132.3,132.12,19.4301163]
[1726684748913,20.37647,132.28,132.12,0.5082163]
[1726684749115,20.37647,132.23,132.12,0.5082163]
[1726684749441,0.25098,132.23,132.16,70.29875964]
[1726684749626,17.86616812,132.36,132.17,1.51285972]
[1726684749627,20.0,132.31,132.17,1.51285972]
[1726684749823,0.12549,132.3,132.14,7.5671]
[1726684750029,0.12549,132.3,132.16,81.64865964]
[1726684750327,10.0,132.33,132.16,81.64865964]
[1726684750527,10.0,132.29,132.12,19.4290163]
[1726684750742,25.70561195,132.41,132.24,62.73235964]
[1726684750743,9.91783288,132.41,132.24,62.73235964]
[1726684750913,19.97649036,132.43,132.24,62.73235964]
[1726684751115,7.5545,132.38,132.3,62.73235964]
[1726684751816,8.0611163,132.4,132.3,70.29045964]
[1726684752033,0.5082163,132.4,132.33,62.73235964]
[1726684752240,0.5082163,132.4,132.33,70.28885964]
[1726684752444,0.5082163,132.4,132.3,62.73235964]
[1726684752616,7.5557,132.35,132.27,62.73235964]
[1726684752823,7.5557,132.35,132.25,7.5614]
[1726684752824,0.5082163,132.4,132.25,7.5614]
[1726684753147,7.5568,132.33,132.25,20.0]
[1726684753547,7.5568,132.33,132.24,18.9038]
[1726684753839,0.25098,132.3,132.23,62.73235964]
[1726684754019,0.12549,132.28,132.19,62.73235964]
[1726684754214,0.12549,132.28,132.22,62.73235964]
[1726684754417,0.12549,132.32,132.22,62.73235964]
[1726684754631,7.5604,132.27,132.19,81.64415964]
[1726684754941,7.5604,132.27,132.16,62.73235964]
[1726684754942,7.5568,132.34,132.24,62.73235964]
[1726684755139,9.58948371,132.41,132.23,70.29435964]
[1726684755140,19.58948371,132.41,132.23,70.29435964]
[1726684755341,7.558,132.31,132.23,81.63845964]
[1726684755535,10.0,132.39,132.23,62.73235964]
[1726684755734,7.5591,132.29,132.2,70.29655964]
[1726684755934,0.12549,132.33,132.18,18.9135]
[1726684756127,0.12549,132.25,132.16,62.73235964]
[1726684756319,9.58948371,132.41,132.23,62.73235964]
[1726684756523,7.5557,132.35,132.27,62.73235964]
[1726684756833,0.5082163,132.47,132.3,62.73235964]
[1726684756834,7.5539,132.39,132.3,62.73235964]
[1726684757039,7.5517,132.42,132.33,70.28865964]
[1726684757345,0.5082163,132.47,132.3,50.0]
[1726684757346,7.554,132.38,132.3,62.73235964]
[1726684757551,18.8778,132.44,132.3,62.73235964]
[1726684757726,18.8815,132.41,132.27,62.73235964]
[1726684757927,10.0,132.43,132.24,62.73235964]
[1726684758225,20.5082163,132.4,132.22,18.9067]
[1726684758461,7.5598,132.28,132.21,62.73235964]
[1726684758660,7.5599,132.28,132.21,62.73235964]
[1726684758942,0.12549,132.26,132.19,18.412]
[1726684759142,7.5603,132.27,132.19,18.412]
[1726684759731,0.25098,132.25,132.18,62.73235964]
[1726684760048,0.12549,132.24,132.16,18.9161]
[1726684760232,0.12549,132.25,132.17,9.07811996]
[1726684760440,7.90962689,132.34,132.3,7.558]
[1726684760615,0.5082163,132.4,132.33,81.62315964]
[1726684760943,0.5082163,132.4,132.37,62.73235964]
[1726684761729,0.5082163,132.4,132.34,62.73235964]
[1726684762146,0.5082163,132.4,132.35,1.51078103]
[1726684762344,0.5082163,132.4,132.37,62.73235964]
[1726684762553,0.5082163,132.4,132.37,145.860769]
[1726684762858,0.5082163,132.4,132.37,144.35071928]
[1726684763020,0.5082163,132.4,132.38,7.5535]
[1726684763342,0.5082163,132.47,132.39,18.8823]
[1726684763551,0.5082163,132.47,132.42,7.5515]
[1726684763727,0.5082163,132.47,132.4,70.28465964]
[1726684764037,0.5082163,132.47,132.4,62.73235964]
[1726684764250,0.5082163,132.47,132.4,120.28495964]
[1726684764537,0.5082163,132.47,132.4,62.73235964]
[1726684764929,0.5082163,132.47,132.37,62.73235964]
[1726684765834,7.5523,132.41,132.34,62.73235964]
[1726684766221,7.5529,132.4,132.31,131.62615964]
[1726684766425,7.554,132.38,132.31,62.73235964]
[1726684766743,0.25098,132.4,132.28,81.63145964]
[1726684766922,7.5557,132.35,132.28,62.73235964]
[1726684767324,7.5557,132.35,132.24,19.81174932]
[1726684767325,7.5573,132.33,132.25,70.29365964]
[1726684767527,0.25098,132.38,132.3,18.8953]
[1726684767742,7.5518,132.42,132.34,62.73235964]
[1726684767945,7.5518,132.42,132.37,62.73235964]
[1726684768132,10.44966637,132.55,132.38,1.51030214]
[1726684768133,7.551,132.44,132.38,1.51030214]
[1726684768323,56.6096,132.49,132.37,62.73235964]
[1726684768324,7.5513,132.43,132.37,62.73235964]
[1726684768524,19.3814163,132.47,132.37,62.73235964]
[1726684769045,7.5529,132.4,132.32,20.0]
[1726684769234,18.8761,132.45,132.32,20.0]
[1726684769235,7.5537,132.39,132.32,20.0]
[1726684769447,18.8793,132.42,132.3,62.73235964]
[1726684769623,7.5552,132.36,132.28,18.8989]
[1726684769830,0.25098,132.39,132.26,50.90782132]
[1726684770153,0.25098,132.37,132.25,18.9033]
[1726684770321,0.12549,132.36,132.22,7.5626]
[1726684770523,7.559,132.3,132.21,26.4715]
[1726684770723,7.5624,132.24,132.2,0.5082163]
[1726684770921,0.37647,132.28,132.2,0.5082163]
[1726684771148,7.5603,132.27,132.2,0.5082163]
[1726684771343,7.5592,132.29,132.2,58.0720163]
[1726684771543,7.56,132.28,132.2,50.5082163]
[1726684771741,10.0,132.4,132.2,50.5082163]
[1726684771742,7.5563,132.34,132.25,62.73235964]
[1726684771938,7.5552,132.36,132.28,62.73235964]
[1726684772125,18.8939,132.4,132.28,70.29175964]
[1726684772330,7.5546,132.37,132.28,70.29185964]
[1726684772543,7.5539,132.39,132.29,50.0]
[1726684772745,7.554,132.38,132.29,50.0]
[1726684772937,26.7799608,132.45,132.31,62.73235964]
[1726684773144,18.8755,132.45,132.31,62.73235964]
[1726684773475,37.7592,132.42,132.25,70.29365964]
[1726684773633,18.8844,132.39,132.26,70.0]
[1726684773837,37.7592,132.42,132.28,62.73235964]
[1726684774153,45.65238458,132.46,132.31,7.5575]
[1726684774349,45.65238458,132.46,132.29,50.0]
[1726684774350,7.554,132.38,132.3,26.4536]
[1726684774535,7.5547,132.37,132.3,18.8952]
[1726684774730,7.5546,132.37,132.29,7.559]
[1726684774928,0.12549,132.39,132.29,20.0]
[1726684775237,7.5544,132.38,132.29,46.4553]
[1726684775425,19.01009,132.39,132.28,62.73235964]
[1726684775625,7.5552,132.36,132.28,70.29205964]
[1726684776045,0.12549,132.38,132.28,62.73235964]
[1726684776256,7.67949,132.38,132.3,7.5584]
[1726684776460,0.12549,132.39,132.28,131.63045964]
[1726684776748,45.65238458,132.46,132.35,7.5555]
[1726684776749,7.5512,132.43,132.35,7.5555]
[1726684776956,0.5082163,132.47,132.37,62.73235964]
[1726684777156,0.5082163,132.47,132.44,81.60765964]
[1726684777653,0.5082163,132.47,132.44,62.73235964]
[1726684777861,0.5082163,132.47,132.4,18.8808]
[1726684778039,8.0572163,132.47,132.38,7.5535]
[1726684778241,8.0572163,132.47,132.39,27.5531]
[1726684778441,0.5082163,132.47,132.39,27.5533]
[1726684778634,8.0571163,132.47,132.39,27.5533]
[1726684778835,7.5495,132.46,132.38,27.5538]
[1726684779152,0.5082163,132.47,132.38,20.0]
[1726684779740,0.12549,132.45,132.37,62.73235964]
[1726684780340,0.12549,132.45,132.34,81.62275964]
[1726684780548,0.12549,132.44,132.34,81.62275964]
[1726684780765,7.5523,132.41,132.34,81.62275964]
[1726684781064,0.12549,132.44,132.36,70.28735964]
[1726684781239,7.5504,132.45,132.36,70.28735964]
[1726684781433,0.5082163,132.47,132.42,62.73235964]
[1726684781852,8.0571163,132.47,132.42,62.73235964]
[1726684782054,0.5082163,132.47,132.42,62.73235964]
[1726684782239,0.5082163,132.47,132.35,18.8891]
[1726684782444,19.3815163,132.47,132.33,62.73235964]
[1726684782860,18.8759,132.45,132.3,112.73235964]
[1726684783162,18.8787,132.43,132.3,112.73235964]
[1726684783480,7.5557,132.35,132.27,70.29215964]
[1726684783650,18.882,132.41,132.28,50.0]
[1726684783959,0.12549,132.39,132.28,50.0]
[1726684784143,7.5569,132.33,132.26,18.9019]
[1726684784347,7.5546,132.37,132.29,120.29135964]
[1726684784547,0.12549,132.41,132.3,18.8951]
[1726684784750,7.5541,132.38,132.3,89.18595964]
[1726684784951,0.12549,132.4,132.3,81.62745964]
[1726684785151,18.8739,132.46,132.33,112.73235964]
[1726684785453,10.0,132.49,132.3,62.73235964]
[1726684785640,18.8832,132.4,132.31,50.0]
[1726684785836,7.5539,132.39,132.32,62.73235964]
[1726684786564,7.5546,132.37,132.3,18.8954]
[1726684786754,7.5563,132.34,132.26,120.29305964]
[1726684786943,0.25098,132.38,132.28,50.0]
[1726684787265,0.25098,132.38,132.26,89.19435964]
[1726684787569,0.12549,132.35,132.26,50.0]
[1726684787769,0.12549,132.35,132.27,7.5602]
[1726684787770,7.5558,132.35,132.27,7.5602]
[1726684787959,0.12549,132.39,132.28,62.73235964]
[1726684788282,7.559,132.3,132.22,57.563]
[1726684788562,18.8888,132.36,132.24,50.0]
[1726684788936,0.37647,132.35,132.23,81.63765964]
[1726684789136,7.5591,132.29,132.23,62.73235964]
[1726684789358,7.5598,132.28,132.2,89.71517594]
[1726684789753,0.37647,132.31,132.2,0.5082163]
[1726684789958,7.5609,132.26,132.2,0.5082163]
[1726684790266,7.5615,132.25,132.2,0.5082163]
[1726684790460,37.7679,132.39,132.22,62.73235964]
[1726684790761,18.8829,132.4,132.27,112.73235964]
[1726684791065,7.5575,132.32,132.24,62.73235964]
[1726684791241,18.8885,132.36,132.24,70.29425964]
[1726684791440,37.767,132.4,132.26,68.9019]
[1726684791645,7.5568,132.33,132.26,50.0]
[1726684791859,7.5563,132.34,132.26,7.5608]
[1726684792060,7.5558,132.35,132.27,7.5602]
[1726684792260,18.8843,132.39,132.26,112.73235964]
[1726684792467,18.8843,132.39,132.27,7.5601]
[1726684792669,18.8874,132.37,132.25,68.9027]
[1726684793064,7.557,132.33,132.25,76.4636]
[1726684793375,7.5564,132.34,132.26,7.5608]
[1726684793678,7.5569,132.33,132.26,7.5608]
[1726684794068,18.8827,132.4,132.29,7.559]
[1726684794446,18.8827,132.4,132.29,26.4563]
[1726684794447,7.5547,132.37,132.29,26.4563]
[1726684794863,7.5535,132.39,132.31,7.5578]
[1726684795062,18.8841,132.39,132.26,50.0]
[1726684795262,37.7582,132.43,132.26,50.0]
[1726684795263,7.5569,132.33,132.26,50.0]
[1726684795551,7.5575,132.32,132.25,7.5613]
[1726684795752,18.8899,132.35,132.22,50.0]
[1726684795952,7.5586,132.3,132.22,7.5626]
[1726684796169,7.5596,132.29,132.21,26.4719]
[1726684796370,24.153354,132.32,132.2,50.5082163]
[1726684796575,7.5626,132.23,132.2,0.5082163]
[1726684796752,7.5614,132.25,132.2,0.5082163]
[1726684796954,24.027864,132.28,132.2,0.5082163]
[1726684797263,7.5631,132.23,132.2,0.5082163]
[1726684797459,0.25098,132.26,132.2,0.5082163]
[1726684797460,7.5632,132.22,132.2,0.5082163]
[1726684797854,31.340584,132.21,132.2,0.5082163]
[1726684798275,7.5637,132.21,132.2,0.5082163]
[1726684798486,31.591564,132.21,132.2,0.5082163]
[1726684798654,31.717054,132.21,132.2,0.5082163]
[1726684799289,31.717054,132.21,132.12,0.5082163]
[1726684799290,51.717054,132.21,132.12,0.5082163]
[1726684799460,7.94477,132.13,132.12,0.5082163]
[1726684799784,7.81928,132.13,132.12,0.5082163]
[1726684799985,27.94477,132.13,132.12,0.5082163]
[1726684800159,27.81928,132.13,132.12,0.5082163]
[1726684800355,27.94477,132.13,132.12,0.5082163]
[1726684800581,27.94477,132.13,132.04,0.5082163]
[1726684800582,0.12549,132.07,132.04,0.5082163]
[1726684800764,7.94927,132.05,132.04,0.5082163]
[1726684801082,27.94927,132.05,132.04,0.5082163]
[1726684801284,27.94927,132.05,131.97,0.5082163]
[1726684801588,0.25098,131.98,131.97,0.5082163]
[1726684801754,7.5765,131.99,131.97,0.5082163]
[1726684801959,7.82678,132.0,131.97,0.5082163]
[1726684802267,7.82528,132.03,131.97,0.5082163]
[1726684802584,23.776884,132.04,131.97,0.5082163]
[1726684802764,0.12549,132.04,131.97,0.5082163]
[1726684802955,0.25098,132.05,131.98,1.51496602]
[1726684803157,87.8236,132.2,131.97,0.5082163]
[1726684803158,18.9182,132.15,131.99,51.51479493]
[1726684803366,18.9182,132.15,131.98,7.5764]
[1726684803583,7.5719,132.07,131.97,19.4506163]
[1726684803888,7.5719,132.07,131.98,7.5766]
[1726684804058,7.5723,132.06,131.97,19.4506163]
[1726684804260,7.5729,132.05,131.97,19.4506163]
[1726684804553,0.12549,132.11,131.97,82.18297594]
[1726684804757,7.5722,132.07,131.97,132.18297594]
[1726684804955,7.5712,132.08,131.99,7.5758]
[1726684805179,56.7521,132.16,132.0,1.51444948]
[1726684805381,7.5692,132.12,132.02,7.5745]
[1726684805554,16.82601229,132.19,132.03,1.51413207]
[1726684805754,7.5694,132.11,132.02,7.5742]
[1726684805982,7.5684,132.13,132.03,1.51405803]
[1726684806184,7.5675,132.15,132.06,7.5721]
[1726684806369,7.5677,132.14,132.03,131.66655964]
[1726684806561,18.9115,132.2,132.06,50.0]
[1726684806765,19.4133163,132.24,132.09,50.0]
[1726684806972,7.87636739,132.23,132.1,18.9244]
[1726684807277,7.5647,132.2,132.1,18.9244]
[1726684807594,0.5082163,132.24,132.13,7.5682]
[1726684807896,7.5631,132.22,132.11,70.0]
[1726684808099,0.5082163,132.24,132.15,62.73235964]
[1726684808275,7.5627,132.23,132.15,62.73235964]
[1726684808794,0.5082163,132.24,132.11,20.0]
[1726684809089,0.5082163,132.24,132.12,50.0]
[1726684809273,0.5082163,132.24,132.15,50.0]
[1726684809668,0.5082163,132.24,132.14,26.4863]
[1726684809865,0.5082163,132.24,132.15,50.0]
[1726684810065,0.5082163,132.24,132.19,50.0]
[1726684810271,7.5602,132.28,132.2,1.51211312]
[1726684810492,7.5602,132.28,132.17,88.9145]
[1726684810493,6.0684163,132.28,132.17,88.9145]
[1726684810695,8.0658163,132.32,132.23,7.5625]
[1726684811005,7.5597,132.28,132.2,18.9103]
[1726684811799,0.5082163,132.32,132.23,62.73235964]
[1726684811990,0.5082163,132.32,132.25,18.9032]
[1726684812289,0.5082163,132.32,132.26,114.24377186]
[1726684812493,0.5082163,132.32,132.3,7.5584]
[1726684812681,0.5082163,132.32,132.29,20.0]
[1726684812877,0.5082163,132.32,132.29,27.559]
[1726684813507,0.5082163,132.32,132.29,20.0]
[1726684813877,0.5082163,132.32,132.26,120.29275964]
[1726684814192,0.5082163,132.32,132.27,20.0]
[1726684814397,0.5082163,132.32,132.28,50.0]
[1726684814599,0.5082163,132.32,132.22,50.0]
[1726684814894,8.0656163,132.32,132.22,50.0]
[1726684815097,0.5082163,132.32,132.24,57.5619]
[1726684815392,0.5082163,132.32,132.24,50.0]
[1726684815697,24.2851003,132.32,132.22,50.0]
[1726684815900,20.12549,132.3,132.14,50.0]
[1726684816191,0.25098,132.26,132.14,50.0]
[1726684816389,0.12549,132.25,132.11,76.4926]
[1726684816584,24.027864,132.26,132.13,50.0]
[1726684816793,24.027864,132.26,132.11,18.9232]
[1726684816794,18.9057,132.24,132.14,1.51245015]
[1726684817000,7.68819,132.23,132.12,62.73235964]
[1726684817196,7.5633,132.22,132.13,51.5127519]
[1726684817402,0.12549,132.24,132.07,50.0]
[1726684817696,7.5672,132.15,132.07,50.0]
[1726684817896,0.12549,132.2,132.03,0.9093127]
[1726684817897,0.25098,132.19,132.04,0.5082163]
[1726684818203,7.5672,132.15,132.04,50.5082163]
[1726684818780,7.5688,132.13,132.04,50.5082163]
[1726684819294,7.5676,132.15,132.06,50.0]
[1726684819495,23.776884,132.15,132.06,50.0]
[1726684819692,7.5683,132.13,132.04,50.5082163]
[1726684819894,0.12549,132.17,132.04,0.5082163]
[1726684820079,7.5692,132.12,132.04,0.5082163]
[1726684820281,7.5695,132.11,132.04,0.5082163]
[1726684820495,7.5687,132.13,132.04,50.5082163]
[1726684820699,7.5706,132.09,132.04,0.5082163]
[1726684820876,19.16998,132.15,132.04,0.5082163]
[1726684821083,23.776884,132.05,132.04,0.5082163]
[1726684821400,23.776884,132.05,131.97,0.5082163]
[1726684821401,7.5768,131.99,131.97,0.5082163]
[1726684821902,24.027864,131.98,131.97,0.5082163]
[1726684822204,24.027864,131.98,131.89,0.5082163]
[1726684822205,7.5805,131.92,131.89,0.5082163]
[1726684822375,7.5811,131.91,131.89,0.5082163]
[1726684823984,0.25098,131.97,131.89,0.5082163]
[1726684824195,23.776884,131.9,131.89,0.5082163]
[1726684824880,24.153354,131.9,131.89,0.5082163]
[1726684825213,23.776884,131.9,131.89,0.5082163]
[1726684825493,7.5811,131.91,131.89,0.5082163]
[1726684825700,0.25098,131.9,131.89,0.5082163]
[1726684826021,47.8821,131.99,131.89,0.5082163]
[1726684826022,7.5804,131.92,131.89,0.5082163]
[1726684826183,0.12549,131.91,131.89,0.5082163]
[1726684826618,7.88491548,131.99,131.89,0.5082163]
[1726684826898,10.0,132.05,131.89,0.5082163]
[1726684826899,18.9325,132.05,131.92,50.0]
[1726684827079,7.5752,132.01,131.91,7.70599]
[1726684827283,7.5752,132.01,131.92,57.5802]
[1726684827686,7.5745,132.03,131.92,50.0]
[1726684827892,56.7805,132.09,131.91,26.65699]
[1726684827893,37.8537,132.09,131.91,26.65699]
[1726684828104,37.8681,132.04,131.9,50.0]
[1726684828406,7.5756,132.01,131.92,7.5802]
[1726684828580,37.8537,132.09,131.91,0.12549]
[1726684829002,37.8537,132.09,131.9,68.9531]
[1726684829301,7.5758,132.0,131.91,7.83138]
[1726684829481,7.5763,131.99,131.91,7.83138]
[1726684829682,18.9301,132.07,131.91,20.25098]
[1726684830003,18.9301,132.07,131.91,20.0]
[1726684830204,0.12549,132.02,131.89,20.5082163]
[1726684830387,7.5787,131.95,131.89,20.5082163]
[1726684830593,7.5782,131.96,131.89,0.5082163]
[1726684830805,18.9345,132.04,131.89,0.5082163]
[1726684831101,7.5772,131.98,131.89,0.5082163]
[1726684831317,7.5772,131.98,131.89,50.5082163]
[1726684831318,7.5775,131.97,131.89,50.5082163]
[1726684831481,42.717184,132.04,131.89,50.5082163]
[1726684831482,7.5764,131.99,131.9,1.51546056]
[1726684831802,18.9316,132.06,131.92,18.9506]
[1726684832004,18.9316,132.06,131.92,26.5303]
[1726684832005,7.5757,132.01,131.92,26.5303]
[1726684832197,7.5757,132.01,131.93,0.12549]
[1726684832413,7.5732,132.05,131.97,7.5774]
[1726684832592,7.5723,132.06,131.98,9.09141529]
[1726684832903,18.9255,132.1,131.99,7.5762]
[1726684833085,18.9255,132.1,131.97,57.5769]
[1726684833483,7.5729,132.05,131.97,57.5772]
[1726684833682,18.9204,132.14,132.0,20.12549]
[1726684833882,0.5082163,132.16,132.04,7.5733]
[1726684834104,0.5082163,132.16,132.01,51.76511771]
[1726684834105,0.5082163,132.16,132.05,1.51401853]
[1726684834303,7.5683,132.13,132.06,1.5138363]
[1726684834495,7.5694,132.11,132.07,1.51392224]
[1726684834706,0.5082163,132.16,132.01,50.0]
[1726684834707,7.572,132.07,132.01,50.0]
[1726684834896,37.8358,132.15,132.01,57.5746]
[1726684835099,7.569,132.12,132.04,20.0]
[1726684835327,19.4256163,132.16,132.0,81.67115964]
[1726684835328,19.4256163,132.16,132.01,50.0]
[1726684835483,18.9213,132.13,131.98,20.37647]
[1726684835687,7.5712,132.08,131.99,50.0]
[1726684835989,18.9213,132.13,132.0,20.0]
[1726684836194,0.5082163,132.16,132.02,7.5746]
[1726684836403,0.37647,132.15,132.01,50.0]
[1726684836583,0.5082163,132.16,132.03,77.5739]
[1726684836778,7.5688,132.13,132.03,77.5739]
[1726684836979,7.5689,132.12,132.03,70.0]
[1726684837204,0.5082163,132.16,132.03,20.0]
[1726684837706,7.5694,132.11,132.02,20.0]
[1726684837894,7.5686,132.13,132.04,50.0]
[1726684838090,7.5688,132.12,132.04,57.5732]
[1726684838313,7.82048,132.11,132.02,77.5742]
[1726684838529,19.4248163,132.16,132.04,50.0]
[1726684838805,7.5683,132.13,132.05,0.12549]
[1726684839595,7.5683,132.13,132.03,0.25098]
[1726684839596,7.5722,132.07,131.99,50.0]
[1726684839794,23.776884,132.12,132.01,50.0]
[1726684839998,7.5705,132.1,132.02,7.5743]
[1726684840306,7.5705,132.1,131.95,62.73235964]
[1726684840307,7.69769,132.07,131.98,57.5768]
[1726684840605,7.5728,132.06,131.97,7.5774]
[1726684840814,7.5728,132.06,131.98,9.09124033]
[1726684840980,23.776884,132.09,131.99,51.51443572]
[1726684841185,0.5082163,132.16,132.03,50.0]
[1726684841486,0.5082163,132.16,132.0,1.51430058]
[1726684841487,0.5082163,132.16,132.0,70.25098]
[1726684841683,7.5722,132.07,132.02,20.0]
[1726684841984,7.5722,132.07,131.98,50.0]
[1726684841985,38.3426163,132.16,131.98,50.0]
[1726684842200,7.5742,132.03,131.95,68.9452]
[1726684842509,38.3426163,132.16,131.93,50.0]
[1726684842510,24.153354,132.06,131.93,50.0]
[1726684842708,24.153354,132.06,131.93,57.5796]
[1726684843011,23.902374,132.04,131.95,50.0]
[1726684843197,23.902374,132.04,131.95,76.525]
[1726684843198,7.5739,132.04,131.95,76.525]
[1726684843382,7.5741,132.03,131.95,50.0]
[1726684843588,38.3426163,132.16,132.0,50.0]
[1726684843783,38.3426163,132.16,132.01,20.0]
[1726684843989,7.57,132.1,132.03,20.0]
[1726684844296,7.5691,132.12,132.04,7.5733]
[1726684844618,37.8396,132.14,131.99,20.0]
[1726684844797,37.8396,132.14,132.0,1.51458471]
[1726684845004,18.9238,132.11,131.97,0.12549]
[1726684845187,18.9238,132.11,131.99,50.0]
[1726684845391,7.5712,132.08,132.0,7.5752]
[1726684845619,0.12549,132.1,131.98,18.9411]
[1726684845793,7.5751,132.02,131.97,50.0]
[1726684845990,20.0,132.09,131.91,50.0]
[1726684846208,0.12549,132.08,131.93,50.0]
[1726684846521,18.9335,132.05,131.93,50.0]
[1726684846816,23.776884,132.0,131.91,50.0]
[1726684847114,7.5768,131.99,131.91,50.0]
[1726684847293,31.352684,132.0,131.92,7.5801]
[1726684847499,7.5752,132.01,131.93,57.5796]
[1726684847804,7.5757,132.0,131.93,50.0]
[1726684848007,38.9266,132.09,131.94,20.0]
[1726684848320,7.5729,132.05,131.99,20.0]
[1726684848501,18.9223,132.12,131.99,77.5761]
[1726684848705,18.9262,132.1,131.99,20.0]
[1726684848899,7.5745,132.03,131.96,20.0]
[1726684849213,7.5734,132.05,131.98,20.0]
[1726684849415,7.5717,132.07,132.0,20.0]
[1726684849611,7.5711,132.08,132.0,27.5757]
[1726684849795,7.5718,132.07,132.0,27.5757]
[1726684850117,7.5718,132.07,132.0,20.0]
[1726684850421,37.8396,132.14,132.01,76.63849]
[1726684850422,7.571,132.09,132.01,76.63849]
[1726684850718,7.5702,132.1,132.02,0.37647]
[1726684851021,7.5688,132.12,132.04,7.94987]
[1726684851313,0.5082163,132.16,132.08,50.0]
[1726684851518,0.5082163,132.16,132.07,20.0]
[1726684851908,7.5677,132.14,132.06,27.5722]
[1726684852090,0.5082163,132.16,132.06,70.12549]
[1726684852422,0.5082163,132.16,132.06,96.62789]
[1726684852624,0.5082163,132.16,132.06,38.9307]
[1726684853122,7.569,132.12,132.04,20.0]
[1726684853421,43.072654,132.15,132.04,50.0]
[1726684853593,23.776884,132.13,132.05,7.5728]
[1726684853793,0.12549,132.14,132.05,7.5728]
[1726684854194,7.5688,132.13,132.05,7.5728]
[1726684854421,0.12549,132.14,132.06,1.51376184]
[1726684854619,7.5683,132.13,132.06,70.0]
[1726684854816,7.5689,132.12,132.06,20.0]
[1726684854999,7.5689,132.12,132.05,20.0]
[1726684855194,24.027864,132.15,132.06,50.0]
[1726684855195,7.5683,132.13,132.06,50.0]
[1726684855511,8.0748163,132.16,132.08,50.12549]
[1726684855712,0.5082163,132.16,132.11,50.0]
[1726684855915,0.5082163,132.16,132.11,20.0]
[1726684856119,0.5082163,132.16,132.07,18.9291]
[1726684856423,0.5082163,132.16,132.05,20.0]
[1726684856927,7.5695,132.11,132.05,20.0]
[1726684857120,7.5689,132.12,132.05,20.0]
[1726684857304,7.57,132.1,132.04,18.9333]
[1726684857620,7.57,132.1,132.0,50.0]
[1726684857621,7.5717,132.07,132.0,50.0]
[1726684857803,0.25098,132.1,132.0,57.5756]
[1726684857804,7.5712,132.08,132.0,57.5756]
[1726684857997,23.902374,132.15,132.05,50.0]
[1726684858213,0.12549,132.13,132.02,50.0]
[1726684858612,7.5696,132.11,132.04,57.5733]
[1726684858923,7.5678,132.14,132.06,57.5723]
[1726684859121,24.027864,132.15,132.07,1.51360436]
[1726684859122,31.345484,132.13,132.07,1.51360436]
[1726684859327,7.5701,132.1,132.01,50.0]
[1726684859538,0.12549,132.12,132.02,20.12549]
[1726684859539,0.25098,132.12,132.02,20.12549]
[1726684859714,7.57,132.1,132.04,20.0]
[1726684860027,31.345284,132.13,132.05,51.51385692]
[1726684860218,23.776884,132.13,132.04,20.0]
[1726684860406,23.776884,132.13,131.99,50.0]
[1726684860407,0.25098,132.12,131.99,50.0]
[1726684860612,7.5711,132.08,132.01,57.5749]
[1726684861023,23.776884,132.13,131.99,50.0]
[1726684861024,0.25098,132.13,131.99,50.0]
[1726684861333,7.5718,132.07,131.99,57.5758]
[1726684861536,7.5705,132.1,132.02,7.5745]
[1726684861824,0.5082163,132.16,132.04,70.0]
[1726684862027,0.5082163,132.16,132.06,20.0]
[1726684862231,18.918,132.15,132.04,20.0]
[1726684862416,18.918,132.15,132.03,20.0]
[1726684862721,7.5734,132.04,131.99,20.0]
[1726684863030,7.5775,131.97,131.94,7.88202503]
[1726684863228,18.9364,132.03,131.94,50.0]